[Event "XIII Mediterranean Championship 2023"]
[Site "Castell-Platja d Aro"]
[Date "2023.11.05"]
[Round "2.20"]
[White "Vinals Rioja, Jaume"]
[Black "Mateu Guiu, Esteve"]
[Result "1-0"]
[ECO "D04"]
[WhiteElo "1838"]
[BlackElo "2075"]
[Annotator "NA RC"]
[PlyCount "107"]
[EventDate "2023.10.26"]
[EventType "swiss"]
[EventCountry "ESP"]
[SourceTitle "playchess.com"]
[Source "ChessBase"]
[SourceQuality "1"]
[TimeControl "5400+30"]

1. Nf3 {[%emt 0:00:14]} Nf6 {[%emt 0:00:21]} 2. d4 {[%emt 0:00:44]} g6 {[%emt 0:01:10]} 3. Nbd2 {[%emt 0:00:13]} d5 {[%emt 0:00:50]} 4. e3 {[%emt 0:00:20]} Bg7 {[%emt 0:00:05]} 5. Bd3 {[%emt 0:00:17]} O-O {[%emt 0:00:07]} 6. O-O {[%emt 0:00:11]} c5 {[%emt 0:01:50]} 7. c3 {[%emt 0:00:39]} Nbd7 {[%emt 0:03:39]} 8. Qe2 {[%emt 0:02:55]} Re8 {[%emt 0:02:22]} 9. Ne5 {[%emt 0:01:28]} Nxe5 {[%emt 0:11:42]} 10. dxe5 {[%emt 1:28:29]} Ng4 {[%emt 0:03:32]} 11. f4 {[%emt 0:00:00]} f6 {[%emt 0:02:28]} 12. h3 {[%emt 0:00:00]} Nh6 {[%emt 0:00:26]} 13. Nf3 {[%emt 0:00:00]} Nf7 {[%emt 0:06:57]} 14. e4 {[%emt 0:00:00]} e6 {[%emt 0:27:52]} 15. exf6 {[%emt 0:00:00]} Bxf6 {[%emt 0:00:27]} 16. e5 {[%emt 0:00:00]} Bg7 {[%emt 0:00:37]} 17. Be3 {[%emt 0:00:00]} Qc7 {[%emt 0:01:10]} 18. Qf2 {[%emt 0:00:00]} b6 {[%emt 0:01:02]} 19. Rad1 {[%emt 0:00:00]} a5 {[%emt 0:02:12]} 20. Qe2 {[%emt 0:00:00]} Bd7 {[%emt 0:03:07]} 21. Nh4 {[%emt 0:00:00]} Bc6 {[%emt 0:03:44]} 22. Qg4 {[%emt 0:00:00]} Nh6 {[%emt 0:01:47]} 23. Qg3 {[%emt 0:00:00]} Ra7 {[%emt 0:12:42]} 24. Qf2 {[%emt 0:00:00]} Nf7 {[%emt 0:05:29]} 25. Nf3 {[%emt 0:00:00]} Qd7 {[%emt 0:01:28]} 26. Qe2 {[%emt 0:00:00]} Bf8 {[%emt 0:00:25]} 27. Nh2 {[%emt 0:00:00]} Nh6 {[%emt 0:01:15]} 28. Ng4 {[%emt 0:00:00]} Nxg4 {[%emt 0:00:18]} 29. Qxg4 {[%emt 0:00:00]} Qg7 {[%emt 0:01:11]} 30. Bf2 {[%emt 0:00:00]} c4 {[%emt 0:01:59]} 31. Bc2 {[%emt 0:00:00]} Bc5 {[%emt 0:00:20]} 32. Kh2 {[%emt 0:00:00]} Rb7 {[%emt 0:00:23]} 33. Bh4 {[%emt 0:00:00]} Be7 {[%emt 0:00:53]} 34. Qxe6+ {[%emt 0:00:00]} Qf7 {[%emt 0:00:38]} 35. Qxc6 {[%emt 0:00:00]} Bxh4 {[%emt 0:00:42]} 36. Qxd5 {[%emt 0:00:00]} Qxd5 {[%emt 0:01:28]} 37. Rxd5 {[%emt 0:00:00]} Be7 {[%emt 0:00:46]} 38. Be4 {[%emt 0:00:00]} Rc7 {[%emt 0:00:33]} 39. Rfd1 {[%emt 0:00:00]} Kf7 {[%emt 0:00:35]} 40. g4 {[%emt 0:00:00]} Bc5 {[%emt 0:00:54]} 41. Kg3 {[%emt 0:00:00]} h6 {[%emt 0:00:29]} 42. Rd7+ {[%emt 0:00:00]} Re7 {[%emt 0:00:22]} 43. Bd5+ {[%emt 0:00:00]} Ke8 {[%emt 0:00:23]} 44. Rxc7 {[%emt 0:00:00]} Rxc7 {[%emt 0:00:15]} 45. Bxc4 {[%emt 0:00:00]} g5 {[%emt 0:01:08]} 46. Bb5+ {[%emt 0:00:00]} Ke7 {[%emt 0:00:13]} 47. f5 {[%emt 0:00:00]} Be3 {[%emt 0:00:30]} 48. Kf3 {[%emt 0:00:00]} Bf4 {[%emt 0:00:21]} 49. Ke4 {[%emt 0:00:00]} Rc5 {[%emt 0:01:05]} 50. Rd5 {[%emt 0:00:00]} Rc7 {[%emt 0:00:08]} 51. f6+ {[%emt 0:00:00]} Ke6 {[%emt 0:00:48]} 52. Rd6+ {[%emt 0:00:00]} Kf7 {[%emt 0:00:04]} 53. Rd7+ {[%emt 0:00:00]} Rxd7 {[%emt 0:00:31]} 54. Bxd7 {[%emt 0:00:00]} 1-0

[Event "XIII Mediterranean Championship 2023"]
[Site "Castell-Platja d Aro"]
[Date "2023.11.05"]
[Round "2.21"]
[White "Pham Guerrero, Sergi"]
[Black "Hernando Rodrigo, Inmaculada"]
[Result "1-0"]
[ECO "B23"]
[WhiteElo "2072"]
[BlackElo "1734"]
[Annotator "NA RC"]
[PlyCount "107"]
[EventDate "2023.10.26"]
[EventType "swiss"]
[EventCountry "ESP"]
[SourceTitle "playchess.com"]
[Source "ChessBase"]
[SourceQuality "1"]
[TimeControl "5400+30"]

1. e4 {[%emt 1:31:00]} c5 {[%emt 1:31:00]} 2. Nc3 {[%emt 0:00:30]} d6 {[%emt 0:00:30]} 3. f4 {[%emt 0:00:30]} Nc6 {[%emt 0:00:30]} 4. Nf3 {[%emt 0:00:30]} e6 {[%emt 0:00:30]} 5. a4 {[%emt 0:00:30]} Be7 {[%emt 0:00:30]} 6. Bb5 {[%emt 0:00:30]} Bd7 {[%emt 0:00:30]} 7. d3 {[%emt 0:00:30]} Nf6 {[%emt 0:00:30]} 8. O-O {[%emt 0:00:30]} Nd4 {[%emt 0:00:30]} 9. e5 {[%emt 0:00:30]} Ng8 {[%emt 0:00:30]} 10. Nxd4 {[%emt 0:00:30]} cxd4 {[%emt 0:00:30]} 11. Ne4 {[%emt 0:00:30]} d5 {[%emt 0:00:30]} 12. Ng3 {[%emt 0:00:30]} Bxb5 {[%emt 0:00:30]} 13. axb5 {[%emt 0:00:30]} Nh6 {[%emt 0:00:30]} 14. Nh5 {[%emt 0:00:30]} Nf5 {[%emt 0:00:30]} 15. g4 {[%emt 0:00:30]} Ne3 {[%emt 0:00:30]} 16. Bxe3 {[%emt 0:00:30]} dxe3 {[%emt 0:00:30]} 17. Nxg7+ {[%emt 0:00:30]} Kf8 {[%emt 0:00:30]} 18. Nh5 {[%emt 0:00:30]} Bh4 {[%emt 0:00:30]} 19. Ng3 {[%emt 0:00:30]} Qb6 {[%emt 0:00:30]} 20. Qf3 {[%emt 0:00:30]} Bxg3 {[%emt 0:00:30]} 21. hxg3 {[%emt 0:00:30]} Ke7 {[%emt 0:00:30]} 22. Rae1 {[%emt 0:00:30]} Rag8 {[%emt 0:00:30]} 23. c4 {[%emt 0:00:30]} d4 {[%emt 0:00:30]} 24. b4 {[%emt 0:00:30]} h6 {[%emt 0:00:30]} 25. Kg2 {[%emt 0:00:30]} Rh7 {[%emt 0:00:30]} 26. f5 {[%emt 0:00:30]} exf5 {[%emt 0:00:30]} 27. gxf5 {[%emt 0:00:30]} Rg5 {[%emt 0:00:30]} 28. Qe4 {[%emt 0:00:30]} f6 {[%emt 0:00:30]} 29. exf6+ {[%emt 0:00:30]} Kxf6 {[%emt 0:00:30]} 30. c5 {[%emt 0:00:30]} Qd8 {[%emt 0:00:30]} 31. Qe6+ {[%emt 0:00:30]} Kg7 {[%emt 0:00:30]} 32. Rf4 {[%emt 0:00:30]} Kf8 {[%emt 0:00:30]} 33. Rh1 {[%emt 0:00:30]} Rhg7 {[%emt 0:00:30]} 34. Rh3 {[%emt 0:00:30]} Qc7 {[%emt 0:00:30]} 35. Rf3 {[%emt 0:00:30]} h5 {[%emt 0:00:30]} 36. Qf6+ {[%emt 0:00:30]} Ke8 {[%emt 0:00:30]} 37. Qxd4 {[%emt 0:00:30]} e2 {[%emt 0:00:30]} 38. Kf2 {[%emt 0:00:30]} Re7 {[%emt 0:00:30]} 39. Rh1 {[%emt 0:00:30]} Qe5 {[%emt 0:00:30]} 40. Qxe5 {[%emt 0:00:30]} Rxe5 {[%emt 0:00:30]} 41. Re1 {[%emt 0:00:30]} Rgxf5 {[%emt 0:00:30]} 42. Rxe2 {[%emt 0:00:30]} Rxe2+ {[%emt 0:00:30]} 43. Kxe2 {[%emt 0:00:30]} Rd5 {[%emt 0:00:30]} 44. Ke3 {[%emt 0:00:30]} b6 {[%emt 0:00:30]} 45. Ke4 {[%emt 0:00:30]} Rg5 {[%emt 0:00:30]} 46. d4 {[%emt 0:00:30]} Ke7 {[%emt 0:00:30]} 47. Rf5 {[%emt 0:00:30]} Rxg3 {[%emt 0:00:30]} 48. Rxh5 {[%emt 0:00:30]} Rb3 {[%emt 0:00:30]} 49. Kd5 {[%emt 0:00:30]} bxc5 {[%emt 0:00:30]} 50. bxc5 {[%emt 0:00:30]} Rxb5 {[%emt 0:00:30]} 51. Rh7+ {[%emt 0:00:30]} Kd8 {[%emt 0:00:30]} 52. Rxa7 {[%emt 0:00:30]} Rb1 {[%emt 0:00:30]} 53. Kc6 {[%emt 0:00:30]} Rh1 {[%emt 0:00:30]} 54. d5 {[%emt 0:00:30]} 1-0

[Event "XIII Mediterranean Championship 2023"]
[Site "Castell-Platja d Aro"]
[Date "2023.11.05"]
[Round "2.22"]
[White "Diaz Comas, Jordi"]
[Black "Garcia Paolicchi, Raul"]
[Result "0-1"]
[ECO "C41"]
[WhiteElo "1837"]
[BlackElo "2051"]
[Annotator "NA RC"]
[PlyCount "77"]
[EventDate "2023.10.26"]
[EventType "swiss"]
[EventCountry "ESP"]
[SourceTitle "playchess.com"]
[Source "ChessBase"]
[SourceQuality "1"]
[TimeControl "5400+30"]

1. e4 {[%emt 0:03:55]} d6 {[%emt 0:01:19]} 2. d4 {[%emt 0:00:29]} Nf6 {[%emt 0:00:08]} 3. Nc3 {[%emt 0:00:15]} e5 {[%emt 0:00:11]} 4. Nf3 {[%emt 0:00:46]} Nbd7 {[%emt 1:30:52]} 5. Bc4 {[%emt 0:02:03]} Be7 {[%emt 0:00:00]} 6. O-O {[%emt 0:00:28]} O-O {[%emt 0:00:00]} 7. Re1 {[%emt 0:01:30]} c6 {[%emt 0:00:00]} 8. a3 {[%emt 1:25:04]} h6 {[%emt 0:02:00]} 9. h3 {[%emt 0:00:30]} Re8 {[%emt 0:00:30]} 10. Be3 {[%emt 0:00:30]} exd4 {[%emt 0:00:30]} 11. Bxd4 {[%emt 0:00:30]} Bf8 {[%emt 0:00:30]} 12. Nd2 {[%emt 0:00:30]} b5 {[%emt 0:00:30]} 13. Ba2 {[%emt 0:00:30]} Qc7 {[%emt 0:00:30]} 14. f4 {[%emt 0:00:30]} d5 {[%emt 0:00:30]} 15. e5 {[%emt 0:00:30]} Nh7 {[%emt 0:00:30]} 16. Qf3 {[%emt 0:00:30]} Nc5 {[%emt 0:00:30]} 17. Kh1 {[%emt 0:00:00]} Ne6 {[%emt 0:00:00]} 18. Bf2 {[%emt 0:00:00]} f5 {[%emt 0:00:00]} 19. Nf1 {[%emt 0:00:00]} Bb7 {[%emt 0:00:00]} 20. Ng3 {[%emt 0:00:00]} g6 {[%emt 0:00:00]} 21. Nge2 {[%emt 0:00:00]} Bg7 {[%emt 0:00:00]} 22. Rad1 {[%emt 0:00:00]} Nhf8 {[%emt 0:03:00]} 23. Nc1 {[%emt 0:03:30]} Kh7 {[%emt 0:00:00]} 24. Kh2 {[%emt 0:00:00]} a5 {[%emt 0:01:00]} 25. Nd3 {[%emt 0:01:00]} d4 {[%emt 0:00:30]} 26. Nb1 {[%emt 0:00:30]} c5 {[%emt 0:00:30]} 27. Bd5 {[%emt 0:00:30]} Bxd5 {[%emt 0:00:00]} 28. Qxd5 {[%emt 0:00:30]} c4 {[%emt 0:00:00]} 29. Nc1 {[%emt 0:00:00]} Nxf4 {[%emt 0:01:30]} 30. Qxb5 {[%emt 0:01:00]} Rab8 {[%emt 0:00:30]} 31. Qa4 {[%emt 0:00:30]} Bxe5 {[%emt 0:00:00]} 32. Rxe5 {[%emt 0:00:30]} Qxe5 {[%emt 0:01:00]} 33. Bxd4 {[%emt 0:00:30]} Qb5 {[%emt 0:00:30]} 34. Qxb5 {[%emt 0:00:00]} Rxb5 {[%emt 0:00:00]} 35. Nc3 {[%emt 0:01:00]} Rb7 {[%emt 0:01:00]} 36. g3 {[%emt 0:00:30]} N4e6 {[%emt 0:00:30]} 37. Nd5 {[%emt 0:00:00]} Rd8 {[%emt 0:00:30]} 38. Nf6+ {[%emt 0:01:00]} Kh8 {[%emt 0:00:30]} 39. Nh5+ {[%emt 0:00:00]} 0-1

[Event "XIII Mediterranean Championship 2023"]
[Site "Castell-Platja d Aro"]
[Date "2023.11.05"]
[Round "2.23"]
[White "Menac Comas, Joan Ramon"]
[Black "Leon Escoda, Manel"]
[Result "1-0"]
[ECO "B91"]
[WhiteElo "2044"]
[BlackElo "1682"]
[Annotator "NA RC"]
[PlyCount "63"]
[EventDate "2023.10.26"]
[EventType "swiss"]
[EventCountry "ESP"]
[SourceTitle "playchess.com"]
[Source "ChessBase"]
[SourceQuality "1"]
[TimeControl "5400+30"]

1. e4 {[%emt 0:00:03]} c5 {[%emt 0:00:21]} 2. Nf3 {[%emt 0:00:10]} d6 {[%emt 0:00:11]} 3. d4 {[%emt 0:00:07]} cxd4 {[%emt 0:00:13]} 4. Nxd4 {[%emt 0:00:13]} Nf6 {[%emt 0:00:11]} 5. Nc3 {[%emt 0:00:05]} a6 {[%emt 0:00:20]} 6. g3 {[%emt 0:00:12]} e5 {[%emt 0:00:22]} 7. Nde2 {[%emt 0:00:06]} Be7 {[%emt 0:00:26]} 8. Bg2 {[%emt 0:00:31]} O-O {[%emt 0:00:36]} 9. O-O {[%emt 0:00:20]} Be6 {[%emt 0:02:19]} 10. a4 {[%emt 0:03:18]} Nc6 {[%emt 0:03:19]} 11. h3 {[%emt 0:02:37]} Rc8 {[%emt 0:03:51]} 12. g4 {[%emt 0:04:45]} Bc4 {[%emt 0:07:16]} 13. b3 {[%emt 0:02:27]} Be6 {[%emt 0:05:33]} 14. Bb2 {[%emt 0:01:51]} Nb4 {[%emt 0:02:35]} 15. f4 {[%emt 0:06:14]} Qb6+ {[%emt 0:01:53]} 16. Kh1 {[%emt 0:00:39]} Bxg4 {[%emt 0:03:31]} 17. hxg4 {[%emt 0:11:20]} Nxg4 {[%emt 0:00:13]} 18. Ng3 {[%emt 0:01:56]} Nf2+ {[%emt 0:02:00]} 19. Rxf2 {[%emt 0:02:02]} Qxf2 {[%emt 0:00:17]} 20. Nf5 {[%emt 0:09:12]} Bf6 {[%emt 0:01:40]} 21. Qxd6 {[%emt 0:08:34]} Nxc2 {[%emt 0:07:23]} 22. Nd5 {[%emt 0:04:11]} Ne1 {[%emt 0:09:02]} 23. Rxe1 {[%emt 0:03:15]} Qxe1+ {[%emt 0:00:28]} 24. Kh2 {[%emt 0:00:05]} Bh4 {[%emt 0:09:41]} 25. Qxe5 {[%emt 0:05:34]} f6 {[%emt 0:02:05]} 26. Qe7 {[%emt 0:12:06]} Rf7 {[%emt 0:02:16]} 27. Qe6 {[%emt 0:00:08]} Rcf8 {[%emt 0:02:18]} 28. Bc3 {[%emt 0:00:57]} Qf2 {[%emt 0:04:35]} 29. Bb4 {[%emt 0:01:55]} g6 {[%emt 0:01:51]} 30. Nh6+ {[%emt 0:01:39]} Kh8 {[%emt 0:02:09]} 31. Nxf7+ {[%emt 0:00:49]} Rxf7 {[%emt 0:00:25]} 32. Qxf7 {[%emt 0:00:43]} 1-0

[Event "XIII Mediterranean Championship 2023"]
[Site "Castell-Platja d Aro"]
[Date "2023.11.05"]
[Round "2.24"]
[White "Garcia Rodriguez, Laia"]
[Black "Jimenez Fernandez, Rebeca"]
[Result "0-1"]
[ECO "B26"]
[WhiteElo "1811"]
[BlackElo "2053"]
[Annotator "NA RC"]
[PlyCount "96"]
[EventDate "2023.10.26"]
[EventType "swiss"]
[EventCountry "ESP"]
[SourceTitle "playchess.com"]
[Source "ChessBase"]
[SourceQuality "1"]
[TimeControl "5400+30"]

1. e4 {[%emt 0:00:07]} c5 {[%emt 0:00:08]} 2. Nc3 {[%emt 0:00:18]} Nc6 {[%emt 0:00:04]} 3. g3 {[%emt 0:00:31]} g6 {[%emt 0:00:06]} 4. Bg2 {[%emt 0:00:16]} Bg7 {[%emt 0:00:04]} 5. d3 {[%emt 0:00:54]} d6 {[%emt 0:00:04]} 6. Be3 {[%emt 0:01:02]} Rb8 {[%emt 0:00:03]} 7. Qd2 {[%emt 0:01:03]} b5 {[%emt 0:00:10]} 8. Nge2 {[%emt 0:01:17]} Nd4 {[%emt 0:00:05]} 9. Nc1 {[%emt 0:02:53]} Bg4 {[%emt 0:00:34]} 10. Bxd4 {[%emt 0:04:57]} Bxd4 {[%emt 0:07:21]} 11. h3 {[%emt 0:01:45]} Bd7 {[%emt 0:00:48]} 12. O-O {[%emt 0:02:11]} b4 {[%emt 0:06:12]} 13. Nd1 {[%emt 0:06:23]} Bg7 {[%emt 0:00:59]} 14. Ne2 {[%emt 0:01:44]} Nf6 {[%emt 0:01:29]} 15. f4 {[%emt 0:04:18]} O-O {[%emt 0:03:42]} 16. Kh2 {[%emt 0:04:19]} a5 {[%emt 0:05:34]} 17. Ne3 {[%emt 0:05:06]} a4 {[%emt 0:04:34]} 18. c3 {[%emt 0:03:43]} Qc7 {[%emt 0:22:30]} 19. g4 {[%emt 0:09:05]} a3 {[%emt 0:12:02]} 20. bxa3 {[%emt 0:06:25]} bxc3 {[%emt 0:00:18]} 21. Nxc3 {[%emt 0:09:40]} Qa5 {[%emt 0:00:08]} 22. Rac1 {[%emt 0:02:47]} Qxa3 {[%emt 0:02:04]} 23. Nc4 {[%emt 0:02:45]} Qa7 {[%emt 0:02:03]} 24. Rb1 {[%emt 0:03:15]} Be6 {[%emt 0:04:24]} 25. Nb5 {[%emt 0:12:45]} Qa4 {[%emt 0:02:57]} 26. Nc3 {[%emt 0:01:53]} Qa6 {[%emt 0:00:53]} 27. Nd5 {[%emt 0:02:03]} Nxd5 {[%emt 0:05:39]} 28. exd5 {[%emt 0:00:10]} Bd7 {[%emt 0:00:06]} 29. Rfe1 {[%emt 0:00:50]} Bf6 {[%emt 0:06:22]} 30. g5 {[%emt 0:01:21]} Rxb1 {[%emt 0:02:08]} 31. Rxb1 {[%emt 0:00:11]} Bd4 {[%emt 0:00:06]} 32. Rb6 {[%emt 0:00:49]} Qa7 {[%emt 0:00:37]} 33. Qc2 {[%emt 0:01:02]} Rb8 {[%emt 0:06:22]} 34. Rb3 {[%emt 0:01:21]} Kg7 {[%emt 0:01:09]} 35. Qb1 {[%emt 0:01:00]} Rxb3 {[%emt 0:00:04]} 36. Qxb3 {[%emt 0:00:20]} Bc8 {[%emt 0:02:39]} 37. a3 {[%emt 0:01:58]} Qd7 {[%emt 0:01:09]} 38. Qc2 {[%emt 0:01:07]} Qf5 {[%emt 0:01:00]} 39. Qd2 {[%emt 0:00:34]} h6 {[%emt 0:01:33]} 40. gxh6+ {[%emt 0:02:43]} Kxh6 {[%emt 0:00:03]} 41. Nb6 {[%emt 0:00:19]} Ba6 {[%emt 0:02:47]} 42. Be4 {[%emt 0:00:34]} Qh5 {[%emt 0:00:30]} 43. Nc4 {[%emt 0:00:58]} Kg7 {[%emt 0:00:00]} 44. Ne3 {[%emt 0:03:48]} Bb7 {[%emt 0:01:00]} 45. Nc2 {[%emt 0:00:00]} Bf6 {[%emt 0:00:00]} 46. Qg2 {[%emt 0:00:00]} Qd1 {[%emt 0:01:00]} 47. Ne3 {[%emt 0:01:30]} Qa1 {[%emt 0:00:30]} 48. f5 {[%emt 0:00:00]} Be5+ {[%emt 0:00:30]} 0-1

[Event "XIII Mediterranean Championship 2023"]
[Site "Castell-Platja d Aro"]
[Date "2023.11.05"]
[Round "2.25"]
[White "De Lussac, Estephe"]
[Black "Teixidor Banus, Josep Maria"]
[Result "1-0"]
[ECO "B06"]
[WhiteElo "2013"]
[BlackElo "1669"]
[Annotator "NA RC"]
[PlyCount "43"]
[EventDate "2023.10.26"]
[EventType "swiss"]
[EventCountry "ESP"]
[SourceTitle "playchess.com"]
[Source "ChessBase"]
[SourceQuality "1"]
[TimeControl "5400+30"]

1. e4 {[%emt 0:00:04]} g6 {[%emt 0:00:11]} 2. d4 {[%emt 0:00:29]} d6 {[%emt 0:00:12]} 3. Nc3 {[%emt 0:00:16]} Bg7 {[%emt 0:00:22]} 4. Be3 {[%emt 0:00:10]} e6 {[%emt 0:00:20]} 5. Qd2 {[%emt 0:01:05]} h6 {[%emt 0:00:36]} 6. O-O-O {[%emt 0:02:15]} Ne7 {[%emt 0:00:44]} 7. f4 {[%emt 0:07:00]} Nd7 {[%emt 0:00:35]} 8. Nf3 {[%emt 0:00:55]} a6 {[%emt 0:00:13]} 9. Bd3 {[%emt 0:06:06]} b5 {[%emt 0:01:00]} 10. Rhe1 {[%emt 0:05:27]} Bb7 {[%emt 0:06:04]} 11. f5 {[%emt 0:03:49]} c5 {[%emt 0:13:12]} 12. fxe6 {[%emt 0:13:42]} fxe6 {[%emt 0:00:17]} 13. a3 {[%emt 0:27:10]} c4 {[%emt 0:03:54]} 14. Bf1 {[%emt 0:00:47]} Qa5 {[%emt 1:09:50]} 15. Bf4 {[%emt 0:07:05]} Qb6 {[%emt 0:00:00]} 16. Kb1 {[%emt 0:02:38]} b4 {[%emt 0:00:00]} 17. axb4 {[%emt 0:11:10]} Qxb4 {[%emt 0:00:00]} 18. Nd5 {[%emt 0:01:28]} Qxd2 {[%emt 0:02:00]} 19. Nc7+ {[%emt 0:00:37]} Kf7 {[%emt 0:00:00]} 20. Rxd2 {[%emt 0:00:29]} Rab8 {[%emt 0:00:00]} 21. Bxd6 {[%emt 0:00:59]} c3 {[%emt 0:00:00]} 22. Rf2 {[%emt 0:00:17]} 1-0

[Event "XIII Mediterranean Championship 2023"]
[Site "Castell-Platja d Aro"]
[Date "2023.11.05"]
[Round "2.26"]
[White "Lunin Bohomolets, Iliia"]
[Black "Makka, Evanthia"]
[Result "0-1"]
[ECO "A07"]
[WhiteElo "1850"]
[BlackElo "2004"]
[Annotator "NA RC"]
[PlyCount "132"]
[EventDate "2023.10.26"]
[EventType "swiss"]
[EventCountry "ESP"]
[SourceTitle "playchess.com"]
[Source "ChessBase"]
[SourceQuality "1"]
[TimeControl "5400+30"]

1. Nf3 {[%emt 1:31:00]} d5 {[%emt 1:31:00]} 2. g3 {[%emt 0:00:30]} Nf6 {[%emt 0:00:30]} 3. Bg2 {[%emt 0:00:30]} g6 {[%emt 0:00:30]} 4. O-O {[%emt 0:00:30]} Bg7 {[%emt 0:00:30]} 5. d3 {[%emt 0:00:30]} O-O {[%emt 0:00:30]} 6. Nbd2 {[%emt 0:00:30]} c6 {[%emt 0:00:30]} 7. e4 {[%emt 0:00:30]} dxe4 {[%emt 0:00:30]} 8. dxe4 {[%emt 0:00:30]} Bg4 {[%emt 0:00:30]} 9. h3 {[%emt 0:00:30]} Be6 {[%emt 0:00:30]} 10. Ng5 {[%emt 0:00:30]} Bc8 {[%emt 0:00:30]} 11. Qe2 {[%emt 0:00:30]} h6 {[%emt 0:00:30]} 12. Ngf3 {[%emt 0:00:30]} Be6 {[%emt 0:00:30]} 13. Nb3 {[%emt 0:00:30]} Qc8 {[%emt 0:00:30]} 14. Kh2 {[%emt 0:00:30]} c5 {[%emt 0:00:30]} 15. Rd1 {[%emt 0:00:30]} Nfd7 {[%emt 0:00:30]} 16. c3 {[%emt 0:00:30]} Nc6 {[%emt 0:00:30]} 17. Be3 {[%emt 0:00:30]} b6 {[%emt 0:00:30]} 18. Nfd2 {[%emt 0:00:30]} Qc7 {[%emt 0:00:30]} 19. f4 {[%emt 0:00:30]} Rad8 {[%emt 0:00:30]} 20. Qf3 {[%emt 0:00:30]} Ndb8 {[%emt 0:00:30]} 21. g4 {[%emt 0:00:30]} a5 {[%emt 0:00:30]} 22. Kh1 {[%emt 0:00:30]} a4 {[%emt 0:00:30]} 23. Nc1 {[%emt 0:00:30]} Bc8 {[%emt 0:00:30]} 24. a3 {[%emt 0:00:30]} Na5 {[%emt 0:00:30]} 25. Re1 {[%emt 0:00:30]} Nbc6 {[%emt 0:00:30]} 26. Bf1 {[%emt 0:00:30]} Na7 {[%emt 0:00:30]} 27. Bd3 {[%emt 0:00:30]} Bb7 {[%emt 0:00:30]} 28. h4 {[%emt 0:00:30]} Bc6 {[%emt 0:00:30]} 29. h5 {[%emt 0:00:30]} Qb7 {[%emt 0:00:30]} 30. Bc2 {[%emt 0:00:30]} gxh5 {[%emt 0:00:30]} 31. g5 {[%emt 0:00:30]} hxg5 {[%emt 0:00:30]} 32. Qxh5 {[%emt 0:00:30]} gxf4 {[%emt 0:00:30]} 33. Bxf4 {[%emt 0:00:30]} f5 {[%emt 0:00:30]} 34. Rg1 {[%emt 0:00:30]} Rf7 {[%emt 0:00:30]} 35. Kh2 {[%emt 0:00:30]} fxe4 {[%emt 0:00:30]} 36. Be5 {[%emt 0:00:30]} Rxd2+ {[%emt 0:00:30]} 37. Ne2 {[%emt 0:00:30]} Rxc2 {[%emt 0:00:30]} 38. Rxg7+ {[%emt 0:00:30]} Rxg7 {[%emt 0:00:30]} 39. Bxg7 {[%emt 0:00:30]} Rxe2+ {[%emt 0:00:30]} 40. Qxe2 {[%emt 0:00:30]} Qc7+ {[%emt 0:00:30]} 41. Kh3 {[%emt 0:00:30]} Qd7+ {[%emt 0:00:30]} 42. Kh4 {[%emt 0:00:30]} Qf5 {[%emt 0:00:30]} 43. Bh6 {[%emt 0:00:30]} Qf6+ {[%emt 0:00:30]} 44. Bg5 {[%emt 0:00:30]} Qf3 {[%emt 0:00:30]} 45. Qh2 {[%emt 0:00:30]} Be8 {[%emt 0:00:30]} 46. Rg1 {[%emt 0:00:30]} Qh5+ {[%emt 0:00:30]} 47. Kg3 {[%emt 0:00:30]} Qxh2+ {[%emt 0:00:30]} 48. Kxh2 {[%emt 0:00:30]} Kf7 {[%emt 0:00:30]} 49. Kg3 {[%emt 0:00:30]} Nc4 {[%emt 0:00:30]} 50. Rh1 {[%emt 0:00:30]} Nc6 {[%emt 0:00:30]} 51. Rh4 {[%emt 0:00:30]} Nd6 {[%emt 0:00:30]} 52. Kf2 {[%emt 0:00:30]} Ke6 {[%emt 0:00:30]} 53. Be3 {[%emt 0:00:30]} Ne5 {[%emt 0:00:30]} 54. Rh6+ {[%emt 0:00:30]} Kd7 {[%emt 0:00:30]} 55. Rh4 {[%emt 0:00:30]} Nd3+ {[%emt 0:00:30]} 56. Ke2 {[%emt 0:00:30]} Nxb2 {[%emt 0:00:30]} 57. Bf4 {[%emt 0:00:30]} Bg6 {[%emt 0:00:30]} 58. Bxd6 {[%emt 0:00:30]} exd6 {[%emt 0:00:30]} 59. Rh6 {[%emt 0:00:30]} Bf5 {[%emt 0:00:30]} 60. Rf6 {[%emt 0:00:30]} Be6 {[%emt 0:00:30]} 61. Ke3 {[%emt 0:00:30]} d5 {[%emt 0:00:30]} 62. Rh6 {[%emt 0:00:30]} Nc4+ {[%emt 0:00:30]} 63. Kf4 {[%emt 0:00:30]} Nxa3 {[%emt 0:00:30]} 64. Ke5 {[%emt 0:00:30]} Nc4+ {[%emt 0:00:30]} 65. Kf6 {[%emt 0:00:30]} e3 {[%emt 0:00:30]} 66. Rh7+ {[%emt 0:00:30]} Kd6 {[%emt 0:00:30]} 0-1

[Event "XIII Mediterranean Championship 2023"]
[Site "Castell-Platja d Aro"]
[Date "2023.11.05"]
[Round "2.27"]
[White "Clot Chico, Arnau"]
[Black "Vidal Traves, Marti"]
[Result "1-0"]
[ECO "A01"]
[WhiteElo "2008"]
[BlackElo "1631"]
[Annotator "NA RC"]
[PlyCount "70"]
[EventDate "2023.10.26"]
[EventType "swiss"]
[EventCountry "ESP"]
[SourceTitle "playchess.com"]
[Source "ChessBase"]
[SourceQuality "1"]
[TimeControl "5400+30"]

1. b3 {[%emt 0:12:52]} d5 {[%emt 0:00:20]} 2. Bb2 {[%emt 0:00:06]} c5 {[%emt 0:00:12]} 3. e3 {[%emt 0:00:08]} Nc6 {[%emt 0:00:33]} 4. Bb5 {[%emt 0:00:07]} Qc7 {[%emt 0:01:21]} 5. f4 {[%emt 0:00:46]} Nf6 {[%emt 0:02:34]} 6. Nf3 {[%emt 0:01:00]} a6 {[%emt 0:02:13]} 7. Bxc6+ {[%emt 0:00:16]} Qxc6 {[%emt 0:02:18]} 8. Ne5 {[%emt 0:00:22]} Qc7 {[%emt 0:00:07]} 9. O-O {[%emt 0:00:35]} b6 {[%emt 0:01:51]} 10. d3 {[%emt 0:02:09]} Bb7 {[%emt 0:01:29]} 11. Nd2 {[%emt 0:00:18]} e6 {[%emt 1:23:02]} 12. Ndf3 {[%emt 1:17:51]} h6 {[%emt 0:00:30]} 13. Qe1 {[%emt 0:00:30]} Be7 {[%emt 0:00:30]} 14. Qg3 {[%emt 0:00:30]} Rg8 {[%emt 0:00:30]} 15. Qh3 {[%emt 0:00:30]} g5 {[%emt 0:00:30]} 16. fxg5 {[%emt 0:00:30]} hxg5 {[%emt 0:00:30]} 17. Qh6 {[%emt 0:00:30]} d4 {[%emt 0:00:30]} 18. exd4 {[%emt 0:00:30]} O-O-O {[%emt 0:00:30]} 19. Nxf7 {[%emt 0:00:30]} Rdf8 {[%emt 0:00:30]} 20. N3e5 {[%emt 0:00:30]} Rxf7 {[%emt 0:00:30]} 21. Nxf7 {[%emt 0:00:30]} Qc6 {[%emt 0:00:30]} 22. Rf3 {[%emt 0:00:30]} g4 {[%emt 0:00:30]} 23. Rg3 {[%emt 0:00:30]} Qe8 {[%emt 0:00:30]} 24. Qxf6 {[%emt 0:00:30]} Bxf6 {[%emt 0:00:30]} 25. Nd6+ {[%emt 0:00:30]} Kd7 {[%emt 0:00:30]} 26. Nxe8 {[%emt 0:00:30]} Kxe8 27. h3 {[%emt 0:00:30]} Ke7 {[%emt 0:01:00]} 28. Rxg4 {[%emt 0:00:30]} Rd8 {[%emt 0:00:30]} 29. Rf1 {[%emt 0:00:30]} cxd4 {[%emt 0:00:30]} 30. Rxf6 {[%emt 0:00:30]} Kxf6 {[%emt 0:00:30]} 31. Bxd4+ {[%emt 0:00:30]} Kf5 {[%emt 0:00:30]} 32. Bxb6 {[%emt 0:00:30]} Rc8 {[%emt 0:00:30]} 33. c4 {[%emt 0:00:30]} Rc6 {[%emt 0:00:30]} 34. Be3 {[%emt 0:00:30]} Rd6 {[%emt 0:00:30]} 35. Rf4+ {[%emt 0:00:30]} Ke5 {[%emt 0:00:30]} 1-0